bitfinex-derivatives/quotes_SOLF0:USTF0_20241026
["timestamp","ask_amount","ask_price","bid_price","bid_amount"]
[1729910929360,3.0242,165.59,165.52,3.0254]
[1729910930860,3.0238,165.61,165.54,3.0249]
[1729910931165,2.6354,165.62,165.54,3.0249]
[1729910931360,2.6354,165.62,165.51,20.92622081]
[1729910932261,3.024,165.6,165.53,3.0252]
[1729910933566,3.024,165.6,165.54,6.32]
[1729910934371,3.0238,165.62,165.56,3.0246]
[1729910934973,3.0232,165.65,165.58,3.0242]
[1729910935267,1.3095,165.66,165.58,3.0242]
[1729910935469,1.3095,165.66,165.54,27.24622081]
[1729910935979,3.0236,165.62,165.57,3.0245]
[1729910936360,3.0236,165.62,165.54,27.24622081]
[1729910936571,3.0236,165.62,165.56,3.0247]
[1729910937276,3.0236,165.62,165.57,3.0244]
[1729910937973,1.3095,165.66,165.58,3.0243]
[1729910938468,3.0238,165.61,165.56,3.0247]
[1729910938673,3.0238,165.61,165.56,9.3447]
[1729910940067,1.3095,165.66,165.56,6.32]
[1729910940274,3.0236,165.62,165.57,3.0244]
[1729910941768,3.0234,165.63,165.58,3.0243]
[1729910942475,3.0236,165.62,165.57,3.0245]
[1729910942770,3.0236,165.62,165.56,6.32]
[1729910942970,1.3095,165.66,165.57,3.0244]
[1729910943173,3.0234,165.63,165.56,6.32]
[1729910944374,3.0234,165.63,165.58,3.0243]
[1729910947384,3.0234,165.63,165.51,13.0722233]
[1729910947385,1.3095,165.66,165.53,13.0722233]
[1729910947683,1.3095,165.66,165.54,6.32]
[1729910947684,13.0722233,165.63,165.54,6.32]
[1729910947976,3.0242,165.59,165.54,6.32]
[1729910948675,3.0238,165.61,165.53,19.3922233]
[1729910948877,13.0722233,165.63,165.53,19.3922233]
[1729910949068,13.0722233,165.65,165.53,19.3922233]
[1729910949271,1.3095,165.66,165.59,13.0722233]
[1729910950270,3.023,165.65,165.61,3.0238]
[1729910950583,3.023,165.65,165.59,13.0722233]
[1729910951275,6.0395,165.84,165.64,13.0722233]
[1729910951579,22.9204233,165.75,165.64,13.0722233]
[1729910951974,22.9204233,165.75,165.66,13.0722233]
[1729910952271,20.89923974,165.74,165.63,6.0]
[1729910952882,3.023,165.66,165.63,6.0]
[1729910953082,20.89923974,165.72,165.59,6.0]
[1729910954076,20.89923974,165.69,165.55,20.89923974]
[1729910954273,3.0237,165.62,165.55,26.89923974]
[1729910954479,3.0237,165.62,165.55,6.0]
[1729910954781,20.89923974,165.66,165.55,6.0]
[1729910955085,3.024,165.6,165.55,6.0]
[1729910955581,3.024,165.6,165.54,3.025]
[1729910955772,3.0238,165.62,165.56,3.0247]
[1729910956678,3.7917,165.67,165.58,3.0241]
[1729910956880,3.7917,165.67,165.55,20.89923974]
[1729910957279,3.0234,165.63,165.56,3.0245]
[1729910957581,3.7917,165.67,165.55,20.89923974]
[1729910957786,3.0232,165.64,165.59,3.0241]
[1729910958085,2.5588,165.67,165.58,26.89923974]
[1729910958584,2.5588,165.67,165.61,3.0236]
[1729910958981,5.5816,165.67,165.61,3.0236]
[1729910959687,3.0232,165.65,165.58,26.89923974]
[1729910960386,3.0236,165.63,165.58,6.0]
[1729910961180,3.00873467,165.7,165.58,6.0]
[1729910961485,20.89923974,165.68,165.55,20.89923974]
[1729910961681,20.89923974,165.68,165.47,58.74]
[1729910961682,7.2725,165.67,165.54,6.0]
[1729910961878,3.0241,165.59,165.54,9.0249]
[1729910962686,20.89923974,165.65,165.53,6.0]
[1729910963380,3.0247,165.57,165.53,6.0]
[1729910963596,3.0247,165.57,165.51,9.0256]
[1729910964588,20.89923974,165.57,165.45,26.89923974]
[1729910964983,1.3404,165.58,165.45,26.89923974]
[1729910965180,3.025,165.55,165.49,3.0258]
[1729910966488,3.0249,165.55,165.49,3.0258]
[1729910967586,2.5327,165.61,165.5,26.89923974]
[1729910968193,2.5327,165.61,165.5,6.0]
[1729910968981,2.5327,165.61,165.5,26.89923974]
[1729910969594,3.0242,165.59,165.52,3.0252]
[1729910970396,3.0247,165.57,165.51,3.0256]
[1729910970594,1.2188,165.6,165.49,6.0]
[1729910971089,1.2188,165.6,165.5,3.0258]
[1729910971291,1.2188,165.6,165.49,6.0]
[1729910971488,1.2188,165.6,165.45,20.89923974]
[1729910971686,1.2188,165.6,165.46,6.0]
[1729910972090,1.2188,165.6,165.51,20.89923974]
[1729910972301,3.0244,165.58,165.53,3.0252]
[1729910973401,3.0244,165.58,165.51,26.89923974]
[1729910973594,3.0244,165.58,165.52,3.0254]
[1729910973894,3.0244,165.58,165.51,26.89923974]
[1729910973895,1.2188,165.6,165.51,26.89923974]
[1729910974094,1.2188,165.6,165.49,3.0259]
[1729910974598,3.0251,165.54,165.48,9.0261]
[1729910974803,22.11803974,165.6,165.48,9.0261]
[1729910975205,1.2188,165.6,165.48,6.0]
[1729910975396,20.89923974,165.57,165.45,26.89923974]
[1729910975697,3.0254,165.52,165.46,3.0265]
[1729910976396,26.89923974,165.51,165.26,18.21]
[1729910976593,26.89923974,165.51,165.37,20.89923974]
[1729910976594,1.3476,165.5,165.37,20.89923974]
[1729910976792,1.3476,165.5,165.4,20.89923974]
[1729910977004,7.3476,165.5,165.4,20.89923974]
[1729910977302,7.3476,165.5,165.43,3.0271]
[1729910977490,1.3476,165.5,165.4,20.89923974]
[1729910977891,3.026,165.49,165.43,3.0271]
[1729910978395,1.3476,165.5,165.4,20.89923974]
[1729910978597,1.3476,165.5,165.4,3.0276]
[1729910978598,3.0265,165.47,165.4,3.0276]
[1729910979503,3.0265,165.47,165.37,26.89923974]
[1729910979702,3.0265,165.47,165.4,3.0276]
[1729910979900,3.0265,165.47,165.37,26.89923974]
[1729910979901,1.3476,165.5,165.37,26.89923974]
[1729910980101,3.026,165.49,165.4,20.89923974]
[1729910980405,1.3476,165.5,165.4,20.89923974]
[1729910980599,3.0262,165.48,165.4,20.89923974]
[1729910981508,3.0262,165.48,165.42,3.0272]
[1729910982697,8.37959375,165.68,165.47,20.89923974]
[1729910982901,2.4829,165.59,165.52,20.89923974]
[1729910983598,2.4829,165.59,165.49,20.89923974]
[1729910983800,3.0246,165.57,165.51,3.0254]
[1729910984195,2.4829,165.59,165.49,20.89923974]
[1729910986407,3.0245,165.58,165.51,3.0254]
[1729910986708,2.4829,165.59,165.49,20.89923974]
[1729910987100,3.0243,165.58,165.52,3.0252]
[1729910987398,2.4829,165.59,165.49,20.89923974]
[1729910988196,2.4829,165.59,165.48,6.04]
[1729910988507,23.38213974,165.59,165.46,20.89923974]
[1729910988702,3.0254,165.53,165.47,3.0263]
[1729910989009,23.38213974,165.59,165.46,20.89923974]
[1729910989206,23.38213974,165.59,165.44,26.93923974]
[1729910989407,20.89923974,165.56,165.44,26.93923974]
[1729910989705,23.38213974,165.59,165.44,26.93923974]
[1729910989706,6.04,165.55,165.44,26.93923974]
[1729910989906,3.0256,165.51,165.46,3.0264]
[1729910990407,9.065,165.55,165.49,3.0259]
[1729910990706,6.04,165.55,165.46,20.89923974]
[1729910991101,3.0254,165.53,165.48,3.0261]
[1729910991707,3.0251,165.54,165.46,20.89923974]
[1729910992103,6.04,165.55,165.46,20.89923974]
[1729910993513,3.0253,165.53,165.48,3.0261]
[1729910993716,3.0253,165.53,165.46,20.89923974]
[1729910993918,3.0253,165.53,165.47,3.0263]
[1729910995611,3.0254,165.52,165.47,3.0263]
[1729910997004,6.04,165.55,165.46,20.89923974]
[1729910997806,6.04,165.57,165.46,20.89923974]
[1729910998112,3.0251,165.54,165.49,3.0259]
[1729910998306,3.0251,165.54,165.49,16.10824775]
[1729910999313,6.04,165.57,165.48,3.0261]
[1729910999314,3.0252,165.53,165.48,3.0261]
[1729910999915,3.0254,165.52,165.47,16.10864775]
[1729911000114,6.04,165.57,165.47,13.08234775]
[1729911001206,13.08234775,165.56,165.45,13.08234775]
[1729911001403,13.08234775,165.56,165.45,16.10894775]
[1729911001606,3.0259,165.5,165.45,16.10894775]
[1729911002011,3.0257,165.51,165.45,16.10904775]
[1729911002214,2.4829,165.59,165.5,13.08234775]
[1729911002422,2.4829,165.59,165.43,13.08234775]
[1729911002423,2.4829,165.59,165.53,13.08234775]
[1729911002922,2.4829,165.59,165.5,13.08234775]
[1729911003418,3.025,165.55,165.5,13.08234775]
[1729911004411,2.4829,165.59,165.48,6.04]
[1729911004412,3.0251,165.54,165.48,19.12234775]
[1729911005314,3.0251,165.54,165.5,13.08234775]
[1729911005918,3.025,165.55,165.5,16.10804775]
[1729911006412,8.5229,165.59,165.5,13.08234775]
[1729911006910,3.0248,165.56,165.51,3.0254]
[1729911008410,3.0251,165.54,165.5,13.08234775]
[1729911008625,13.08234775,165.56,165.47,6.04]
[1729911008830,13.08234775,165.56,165.46,6.04]
[1729911009828,13.08234775,165.54,165.46,6.04]
[1729911010027,6.04,165.57,165.46,19.12234775]
[1729911010242,2.4829,165.59,165.5,13.08234775]
[1729911010243,15.56524775,165.59,165.5,13.08234775]
[1729911011121,2.4829,165.59,165.48,13.08234775]
[1729911011327,13.08234775,165.57,165.48,13.08234775]
[1729911011832,3.0252,165.54,165.48,16.10844775]
[1729911012433,3.0252,165.54,165.49,3.0258]
[1729911012634,3.0254,165.52,165.48,13.08234775]
[1729911012825,13.08234775,165.57,165.46,6.04]
[1729911012826,13.08234775,165.57,165.46,19.12234775]
[1729911013028,13.08234775,165.57,165.48,13.08234775]
[1729911013429,5.82,165.58,165.46,13.08234775]
[1729911013430,13.08234775,165.55,165.46,13.08234775]
[1729911013632,5.82,165.58,165.44,5.82]
[1729911013928,13.08234775,165.51,165.43,3.027]
[1729911014936,13.08234775,165.49,165.39,8.8477]
[1729911015531,3.0268,165.45,165.39,3.0277]
[1729911015731,2.5838,165.5,165.38,16.11034775]
[1729911015732,13.08234775,165.47,165.38,16.11034775]
[1729911016036,3.0282,165.37,165.29,13.08234775]
[1729911016725,3.0286,165.35,165.28,3.0298]
[1729911016934,5.82,165.38,165.3,13.08234775]
[1729911017337,3.0282,165.37,165.3,16.11174775]
[1729911018230,3.0282,165.37,165.3,3.0294]
[1729911019235,3.0275,165.41,165.34,3.0285]
[1729911019430,5.82,165.44,165.33,20.95618053]
[1729911020235,3.0273,165.42,165.35,3.0284]
[1729911022440,3.0286,165.35,165.28,3.0297]
[1729911023237,3.0286,165.35,165.26,20.95618053]
[1729911023438,3.0286,165.35,165.29,3.0296]
[1729911023736,3.0283,165.36,165.26,20.95618053]
[1729911024529,3.0283,165.36,165.31,3.0292]
[1729911024736,5.5197,165.38,165.29,26.77618053]
[1729911024938,2.4916,165.38,165.29,26.77618053]
[1729911025136,3.0274,165.42,165.35,3.0285]
[1729911025338,8.8474,165.42,165.32,20.95618053]
[1729911025734,2.6171,165.44,165.35,20.95618053]
[1729911025942,2.6171,165.44,165.37,20.95618053]
[1729911026540,5.644,165.44,165.37,20.95618053]
[1729911026736,2.6171,165.44,165.35,26.77618053]
[1729911027041,2.6171,165.44,165.35,5.82]
[1729911027242,2.6171,165.44,165.32,20.95618053]
[1729911027542,3.0274,165.41,165.36,3.0283]
[1729911027742,5.82,165.43,165.32,20.95618053]
[1729911028141,3.0276,165.41,165.34,3.0286]
[1729911028336,5.82,165.43,165.32,20.95618053]
[1729911029244,5.82,165.43,165.33,3.0288]
[1729911030339,3.0279,165.39,165.33,3.0288]
[1729911030540,3.0279,165.39,165.34,3.0287]
[1729911030942,3.0279,165.39,165.32,20.95618053]
[1729911031639,3.0276,165.4,165.35,3.0285]
[1729911032033,3.0272,165.43,165.35,20.95618053]
[1729911032238,2.6171,165.44,165.35,20.95618053]
[1729911032542,3.0274,165.41,165.36,8.8483]
[1729911032738,2.6171,165.44,165.33,5.82]
[1729911033138,2.6171,165.44,165.35,20.95618053]
[1729911033845,5.6441,165.44,165.38,3.0279]
[1729911034043,1.2617,165.48,165.38,20.95618053]
[1729911034249,1.2617,165.48,165.38,26.77618053]
[1729911034449,3.0265,165.46,165.41,3.0273]
[1729911034748,26.77618053,165.51,165.38,26.77618053]
[1729911035144,3.0265,165.47,165.42,3.0272]
[1729911035335,3.0265,165.47,165.38,26.77618053]
[1729911035539,26.77618053,165.51,165.38,26.77618053]
[1729911035742,26.77618053,165.51,165.4,3.0274]
[1729911035743,3.0267,165.46,165.4,3.0274]
[1729911036346,26.77618053,165.51,165.38,26.77618053]
[1729911037542,3.0268,165.45,165.38,26.77618053]
[1729911038243,3.0268,165.45,165.4,13.08101469]
[1729911038445,13.08101469,165.5,165.4,16.10851469]
[1729911038645,3.0269,165.44,165.4,13.08101469]
[1729911038846,13.08101469,165.48,165.38,13.08101469]
[1729911039049,13.08101469,165.48,165.38,18.90101469]
[1729911039348,13.08101469,165.48,165.35,13.08101469]
[1729911039543,1.232,165.47,165.35,18.90101469]
[1729911039743,13.08101469,165.43,165.35,5.82]
[1729911039952,18.90101469,165.46,165.35,18.90101469]
[1729911040354,5.82,165.46,165.35,5.82]
[1729911041448,2.5804,165.52,165.42,20.93989117]
[1729911041644,1.232,165.58,165.45,20.93989117]
[1729911041848,1.232,165.58,165.4,20.93989117]
[1729911041849,3.0248,165.56,165.5,3.0257]
[1729911042150,3.8834,165.58,165.49,5.82]
[1729911042555,5.82,165.64,165.49,5.82]
[1729911042861,23.43139117,165.64,165.49,5.82]
[1729911043547,23.43139117,165.64,165.51,3.0256]
[1729911043753,20.93989117,165.61,165.49,5.82]
[1729911044453,3.025,165.55,165.49,5.82]
[1729911044854,5.82,165.6,165.49,5.82]
[1729911045748,20.93989117,165.59,165.45,20.93989117]
[1729911045953,3.0253,165.53,165.46,3.0265]
[1729911046159,3.0253,165.53,165.47,5.82]
[1729911046349,3.0253,165.53,165.39,58.82]
[1729911046350,20.93989117,165.56,165.44,5.82]
[1729911046659,3.0257,165.51,165.44,8.8469]
[1729911046862,2.5601,165.55,165.44,8.8469]
[1729911046863,2.5601,165.55,165.44,5.82]
[1729911047160,2.5601,165.55,165.46,20.93989117]
[1729911047746,3.0251,165.54,165.47,3.0262]
[1729911048347,3.0251,165.54,165.48,3.0261]
[1729911048558,3.0252,165.53,165.46,20.93989117]
[1729911049756,3.0261,165.49,165.42,3.0271]
[1729911049960,5.82,165.54,165.4,20.93989117]
[1729911050361,5.82,165.54,165.45,20.93989117]
[1729911050664,2.5601,165.55,165.45,20.93989117]
[1729911050855,3.0254,165.53,165.46,3.0263]
[1729911051252,1.2228,165.58,165.48,20.93989117]
[1729911051451,3.0247,165.56,165.49,5.82]
[1729911051964,3.0247,165.56,165.5,3.0257]
[1729911052356,5.82,165.63,165.51,20.93989117]
[1729911052656,1.2293,165.62,165.51,20.93989117]
[1729911052856,3.0242,165.59,165.51,23.96529117]
[1729911053057,1.2293,165.62,165.51,23.96529117]
[1729911053257,1.2293,165.62,165.51,20.93989117]
[1729911053458,1.2293,165.62,165.49,5.82]
[1729911053459,3.025,165.55,165.49,5.82]
[1729911053661,20.93989117,165.61,165.49,5.82]
[1729911054064,3.0244,165.58,165.49,5.82]
[1729911054267,1.3127,165.57,165.49,5.82]
[1729911054455,1.3127,165.57,165.45,20.93989117]
[1729911054759,3.0256,165.52,165.45,26.75989117]
[1729911055559,1.2741,165.56,165.46,3.0264]
[1729911055758,1.2741,165.56,165.45,26.75989117]
[1729911057259,3.0252,165.53,165.48,3.0261]
[1729911058671,1.2741,165.56,165.45,26.75989117]
[1729911058860,3.0256,165.51,165.46,3.0265]
[1729911059862,3.0256,165.51,165.42,58.8]
[1729911059863,3.026,165.49,165.44,3.0267]
[1729911060067,22.27459117,165.55,165.42,64.62]
[1729911060467,20.93989117,165.53,165.38,20.93989117]
[1729911060670,26.75989117,165.53,165.39,5.82]
[1729911061273,3.0266,165.46,165.4,3.0274]
[1729911061566,26.75989117,165.53,165.39,5.82]
[1729911061867,3.0264,165.47,165.42,3.0271]
[1729911062667,26.75989117,165.53,165.43,3.027]
[1729911063466,3.0271,165.43,165.37,23.96799117]
[1729911063671,20.93989117,165.47,165.37,3.0281]
[1729911063868,2.6503,165.46,165.37,3.0281]
[1729911064266,3.0272,165.43,165.37,3.0281]
[1729911065570,3.0273,165.42,165.37,3.0281]
[1729911065779,2.6503,165.46,165.36,5.82]
[1729911066477,2.6503,165.46,165.36,8.8482]
[1729911066672,2.6503,165.46,165.32,79.73989117]
[1729911066873,20.93989117,165.44,165.33,5.82]
[1729911067874,20.93989117,165.39,165.13,18.18]
[1729911068071,39.04989117,165.47,165.26,3.0301]
[1729911068072,3.0289,165.34,165.26,3.0301]
[1729911068272,8.8489,165.34,165.24,20.93989117]
[1729911068672,5.82,165.34,165.24,20.93989117]
[1729911068977,5.82,165.34,165.24,23.97029117]
[1729911069175,5.82,165.34,165.24,20.93989117]
[1729911069875,5.82,165.34,165.24,23.97029117]
[1729911070376,20.93989117,165.37,165.21,20.93989117]
[1729911070574,5.96,165.36,165.24,20.93989117]
[1729911071377,3.029,165.33,165.27,3.0299]
[1729911072784,4.0062,165.38,165.29,20.93989117]
[1729911073080,2.5731,165.46,165.32,20.93989117]
[1729911073286,3.8594,165.46,165.32,20.93989117]
[1729911073984,3.8594,165.46,165.34,3.0287]
[1729911074783,3.8594,165.46,165.37,3.028]
[1729911074978,3.8594,165.46,165.34,26.89989117]
[1729911075185,3.8594,165.46,165.34,5.96]
[1729911075186,24.79929117,165.46,165.34,5.96]
[1729911076174,24.79929117,165.46,165.35,3.0285]
[1729911076581,3.8594,165.46,165.35,20.93989117]
[1729911076785,3.8594,165.46,165.38,20.93989117]
[1729911076974,5.96,165.52,165.38,20.93989117]
[1729911077283,7.2379,165.51,165.39,5.96]
[1729911077477,7.2379,165.51,165.41,20.93989117]
[1729911077478,2.5106,165.51,165.41,20.93989117]
[1729911078378,5.5364,165.51,165.44,3.0269]
[1729911078581,2.5106,165.51,165.44,3.0269]
[1729911078977,1.2982,165.59,165.44,3.0269]
[1729911078978,5.96,165.57,165.46,20.93989117]
[1729911079382,3.0249,165.55,165.49,3.0259]
[1729911079784,5.96,165.57,165.46,20.93989117]
[1729911080088,3.0247,165.56,165.46,20.93989117]
[1729911080588,5.96,165.57,165.44,26.89989117]
[1729911081186,3.0249,165.55,165.48,3.0261]
[1729911081489,5.96,165.57,165.46,20.93989117]
[1729911081790,3.0251,165.54,165.47,3.0262]
[1729911082591,3.0248,165.56,165.49,3.0258]
[1729911083583,3.0248,165.56,165.49,5.96]
[1729911083893,3.0248,165.56,165.5,3.0257]
[1729911085492,1.3189,165.58,165.49,5.96]
[1729911085690,20.93989117,165.67,165.51,20.93989117]
[1729911085893,2.521,165.64,165.54,20.93989117]
[1729911086095,2.521,165.64,165.55,5.96]
[1729911086492,2.521,165.64,165.56,3.0246]
[1729911086695,2.521,165.64,165.55,5.96]
[1729911087296,2.521,165.64,165.54,20.93989117]
[1729911087502,2.521,165.64,165.54,5.96]
[1729911088001,20.93989117,165.62,165.52,5.96]
[1729911088207,8.481,165.64,165.48,26.89989117]
[1729911088208,20.93989117,165.59,165.48,26.89989117]
[1729911088408,3.0247,165.56,165.49,3.0259]
[1729911088613,11.52023151,165.64,165.48,5.96]
[1729911088800,20.93989117,165.58,165.48,5.96]
[1729911089302,3.025,165.55,165.49,3.026]
[1729911089703,3.0254,165.53,165.46,3.0264]
[1729911090010,22.18929117,165.58,165.46,5.96]
[1729911090409,3.0253,165.53,165.47,3.0263]
[1729911090606,22.18929117,165.58,165.46,5.96]
[1729911090913,3.0254,165.53,165.47,3.0263]
[1729911091206,22.18929117,165.58,165.46,5.96]
[1729911091408,22.18929117,165.58,165.46,26.89989117]
[1729911091607,1.2494,165.58,165.46,26.89989117]
[1729911092112,3.0247,165.57,165.5,3.0258]
[1729911092313,3.0247,165.57,165.48,20.93989117]
[1729911092612,5.96,165.62,165.51,20.93989117]
[1729911092801,5.96,165.62,165.52,5.96]
[1729911093202,5.96,165.62,165.49,20.93989117]
[1729911093405,20.93989117,165.6,165.49,26.89989117]
[1729911093605,3.0246,165.57,165.5,3.0257]
[1729911093918,20.93989117,165.6,165.46,20.93989117]
[1729911094206,3.0244,165.58,165.52,3.0254]
[1729911094616,5.96,165.62,165.51,20.93989117]
[1729911094909,3.024,165.6,165.51,20.93989117]
[1729911095106,3.024,165.6,165.52,5.94]
[1729911095309,5.96,165.62,165.52,5.94]
[1729911095511,3.0243,165.59,165.52,5.94]
[1729911096311,3.0243,165.59,165.53,3.0251]
[1729911097306,5.96,165.62,165.54,3.0249]
[1729911097809,5.96,165.62,165.52,26.87989117]
[1729911098008,8.9837,165.62,165.56,3.0247]
[1729911098306,5.96,165.62,165.56,3.0247]
[1729911098504,3.0241,165.59,165.54,3.025]
[1729911100504,3.0244,165.58,165.53,3.0252]
[1729911102510,3.0242,165.59,165.53,3.0252]
[1729911102809,1.3414,165.63,165.55,20.93989117]
[1729911103010,2.95555587,165.82,165.6,20.93989117]
[1729911103211,1.2163,165.71,165.62,3.0236]
[1729911103605,1.3212,165.7,165.62,3.0236]
[1729911104004,1.3212,165.7,165.6,26.89989117]
[1729911104205,3.0227,165.68,165.63,3.0234]
[1729911105006,3.0227,165.68,165.6,5.96]
[1729911105007,3.0208,165.78,165.65,20.93989117]
[1729911105211,5.96,165.79,165.66,5.96]
[1729911105414,5.96,165.79,165.68,20.93989117]
[1729911105715,3.021,165.77,165.68,23.96219117]
[1729911105910,26.89989117,165.8,165.68,20.93989117]
[1729911106209,26.89989117,165.8,165.66,5.96]
[1729911106210,2.5375,165.81,165.71,20.93989117]
[1729911106516,2.5375,165.81,165.71,26.89989117]
[1729911107716,3.0203,165.8,165.73,3.0215]
[1729911108417,2.5375,165.81,165.71,26.89989117]
[1729911108612,20.93989117,165.8,165.64,20.93989117]
[1729911108812,20.93989117,165.8,165.65,5.96]
[1729911109114,20.93989117,165.8,165.68,20.93989117]
[1729911109713,20.93989117,165.8,165.65,20.93989117]
[1729911109914,20.93989117,165.78,165.65,26.89989117]
[1729911110219,3.0214,165.75,165.66,3.0228]
[1729911110518,20.93989117,165.78,165.66,3.0228]
[1729911111608,3.0218,165.72,165.66,3.0228]
[1729911112013,20.93989117,165.78,165.65,29.92289117]
[1729911112213,3.022,165.71,165.65,29.92289117]
[1729911112417,20.93989117,165.75,165.62,20.93989117]
[1729911112723,20.93989117,165.72,165.62,5.96]
[1729911112907,2.5395,165.71,165.62,5.96]
[1729911113512,8.4995,165.71,165.62,5.96]
[1729911114916,8.4995,165.71,165.58,67.7442]
[1729911114917,20.93989117,165.7,165.58,67.7442]
[1729911115118,20.93989117,165.7,165.58,8.9842]
[1729911115514,8.4995,165.71,165.55,100.0]
[1729911115515,3.0239,165.61,165.55,100.0]
[1729911116120,3.0239,165.61,165.55,103.0249]
[1729911116723,3.0236,165.62,165.55,100.0]
[1729911117113,20.93989117,165.65,165.55,100.0]
[1729911117318,3.024,165.6,165.55,100.0]
[1729911117919,20.93989117,165.65,165.55,100.0]
[1729911118224,3.0242,165.59,165.55,100.0]
[1729911118415,20.93989117,165.65,165.55,100.0]
[1729911118620,3.0243,165.58,165.55,100.0]
[1729911118924,20.93989117,165.65,165.55,100.0]
[1729911118925,20.93989117,165.6,165.55,100.0]
[1729911119123,2.5269,165.59,165.55,100.0]
[1729911119519,2.5269,165.59,165.55,91.9108]
[1729911119720,3.0247,165.56,165.55,89.8885]
[1729911119926,3.0247,165.56,165.55,87.8662]
[1729911120125,3.0247,165.56,165.55,75.7351]
[1729911120327,20.93989117,165.58,165.44,5.96]
[1729911120520,2.5269,165.59,165.42,20.93989117]
[1729911120729,20.93989117,165.55,165.42,26.89989117]
[1729911121117,20.93989117,165.55,165.42,29.92709117]
[1729911121319,20.93989117,165.55,165.42,26.89989117]
[1729911121630,3.0258,165.5,165.43,5.5353]
[1729911121825,3.0258,165.5,165.43,6.788]
[1729911122125,3.0262,165.48,165.43,3.7611]
[1729911122923,20.93989117,165.5,165.43,2.5394]
[1729911123128,5.96,165.49,165.3,1.2867]
[1729911123330,5.96,165.49,165.31,1.2217]
[1729911123331,20.93989117,165.44,165.31,1.2217]
[1729911123621,5.96,165.44,165.35,20.93989117]
[1729911123925,5.96,165.44,165.32,22.19259117]
[1729911124127,3.0276,165.4,165.34,3.0286]
[1729911124324,5.96,165.44,165.32,1.2527]
[1729911124519,20.93989117,165.42,165.32,1.2527]
[1729911124730,3.0284,165.36,165.32,1.2527]
[1729911124927,5.96,165.39,165.32,1.2527]
[1729911125228,3.0282,165.37,165.32,1.2527]
[1729911125418,5.96,165.39,165.32,1.2527]
[1729911125824,5.96,165.43,165.33,20.93989117]
[1729911126325,5.96,165.44,165.33,20.93989117]
[1729911127034,3.0271,165.43,165.36,3.0283]
[1729911127626,3.0271,165.43,165.33,20.93989117]
[1729911127627,5.96,165.44,165.38,3.0279]
[1729911127823,5.96,165.44,165.33,20.93989117]
[1729911128241,3.0269,165.44,165.37,3.0281]
[1729911128535,5.96,165.45,165.35,20.93989117]
[1729911128730,20.93989117,165.5,165.38,20.93989117]
[1729911128731,5.96,165.49,165.38,20.93989117]
[1729911128939,3.0262,165.48,165.41,3.0273]
[1729911129128,8.9862,165.48,165.41,3.0273]
[1729911129328,3.0257,165.51,165.43,3.027]
[1729911129524,5.96,165.5,165.41,20.93989117]
[1729911130028,58.8,165.58,165.42,1.2294]
[1729911130233,5.96,165.57,165.44,20.93989117]
[1729911130529,6.0,165.56,165.44,20.93989117]
[1729911130724,6.0,165.56,165.42,2.5048]
[1729911130925,20.93989117,165.55,165.42,2.5048]
[1729911131327,8.95919013,165.56,165.42,1.2294]
[1729911131531,20.93989117,165.5,165.39,1.2829]
[1729911131727,26.93989117,165.49,165.39,1.2829]
[1729911131931,6.0,165.48,165.39,1.2829]
[1729911132236,3.0264,165.47,165.4,3.0276]
[1729911132532,6.0,165.48,165.39,1.2829]
[1729911133226,3.0265,165.46,165.39,4.3107]
[1729911133430,6.0,165.48,165.39,1.2829]
[1729911133937,6.0,165.48,165.35,20.93989117]
[1729911133938,3.0273,165.42,165.35,3.0285]
[1729911134138,6.0,165.48,165.35,3.0285]
[1729911134337,6.0,165.48,165.34,2.5969]
[1729911135636,20.93989117,165.46,165.34,2.5969]
[1729911136031,20.93989117,165.46,165.34,5.6255]